[Event "*** Titled Tuesday Blitz"]
[Site "Chess.com"]
[Date "2020.11.10"]
[Round "2"]
[White "Jospem"]
[Black "Iskusnyh"]
[Result "1-0"]
[WhiteElo "2911"]
[BlackElo "2568"]
[TimeControl "180+1"]
[EndTime "10:21:28 PST"]
[Termination "Jospem won on time"]

1. e4 {[%clk 0:02:58.6]} 1... e6 {[%clk 0:02:59.2]} 2. d4 {[%clk 0:02:58.1]}
2... d5 {[%clk 0:02:59.8]} 3. Nc3 {[%clk 0:02:56.6]} 3... Nf6 {[%clk 0:02:58.7]}
4. exd5 {[%clk 0:02:54.6]} 4... exd5 {[%clk 0:02:56.9]} 5. Bd3 {[%clk
0:02:54.2]} 5... Nc6 {[%clk 0:02:44.1]} 6. Nge2 {[%clk 0:02:52]} 6... Nb4 {[%clk
0:02:31.7]} 7. Bb5+ {[%clk 0:02:36.5]} 7... c6 {[%clk 0:02:30.1]} 8. Ba4 {[%clk
0:02:27.4]} 8... Be7 {[%clk 0:02:26]} 9. O-O {[%clk 0:02:25.8]} 9... O-O {[%clk
0:02:25.5]} 10. Ng3 {[%clk 0:02:25.4]} 10... Re8 {[%clk 0:02:10.6]} 11. Nce2
{[%clk 0:02:22.8]} 11... Bg4 {[%clk 0:01:49.9]} 12. c3 {[%clk 0:02:16.7]} 12...
Na6 {[%clk 0:01:49]} 13. Bc2 {[%clk 0:02:16.1]} 13... Bf8 {[%clk 0:01:43.3]} 14.
Qd3 {[%clk 0:02:00.9]} 14... Nc7 {[%clk 0:01:29]} 15. Bg5 {[%clk 0:01:45.2]}
15... g6 {[%clk 0:01:26.6]} 16. Rae1 {[%clk 0:01:35.1]} 16... Ne6 {[%clk
0:01:21]} 17. Bc1 {[%clk 0:01:34.2]} 17... Bxe2 {[%clk 0:01:15.1]} 18. Rxe2
{[%clk 0:01:26.5]} 18... Bd6 {[%clk 0:01:13.5]} 19. Rfe1 {[%clk 0:01:25.7]}
19... Bf4 {[%clk 0:01:01.3]} 20. Bxf4 {[%clk 0:00:59.7]} 20... Nxf4 {[%clk
0:00:59.8]} 21. Rxe8+ {[%clk 0:01:00.6]} 21... Nxe8 {[%clk 0:00:59.6]} 22. Qf3
{[%clk 0:00:55.2]} 22... Qf6 {[%clk 0:00:51.3]} 23. Nf5 {[%clk 0:00:27.1]} 23...
Ne6 {[%clk 0:00:45.6]} 24. Qg3 {[%clk 0:00:27]} 24... N8g7 {[%clk 0:00:42.9]}
25. Nh6+ {[%clk 0:00:23.3]} 25... Kf8 {[%clk 0:00:42.3]} 26. Ng4 {[%clk
0:00:20.1]} 26... Qd8 {[%clk 0:00:38.7]} 27. Qe5 {[%clk 0:00:14.3]} 27... Qc7
{[%clk 0:00:30.1]} 28. Qf6 {[%clk 0:00:12]} 28... Re8 {[%clk 0:00:28.2]} 29. Ne5
{[%clk 0:00:10]} 29... Kg8 {[%clk 0:00:20.2]} 30. h4 {[%clk 0:00:07]} 30... Nf8
{[%clk 0:00:18.9]} 31. Re3 {[%clk 0:00:03.3]} 31... Re6 {[%clk 0:00:18.6]} 32.
Qf3 {[%clk 0:00:03.4]} 32... f6 {[%clk 0:00:18.4]} 33. Ng4 {[%clk 0:00:03.5]}
33... f5 {[%clk 0:00:11.5]} 34. Ne5 {[%clk 0:00:03.4]} 34... Nd7 {[%clk
0:00:10]} 35. Nxd7 {[%clk 0:00:01.5]} 35... Qxd7 {[%clk 0:00:09.7]} 36. Qe2
{[%clk 0:00:02.4]} 36... Rxe3 {[%clk 0:00:09]} 37. Qxe3 {[%clk 0:00:03.3]} 37...
Qe6 {[%clk 0:00:09.3]} 38. Qd2 {[%clk 0:00:03.7]} 38... Qf6 {[%clk 0:00:08]} 39.
g3 {[%clk 0:00:04]} 39... Qe6 {[%clk 0:00:07.8]} 40. Kg2 {[%clk 0:00:03.5]}
40... Ne8 {[%clk 0:00:07.4]} 41. Bd1 {[%clk 0:00:03.9]} 41... Nd6 {[%clk
0:00:07.7]} 42. f3 {[%clk 0:00:04.2]} 42... Nc4 {[%clk 0:00:07.3]} 43. Qc1
{[%clk 0:00:02.2]} 43... Ne3+ {[%clk 0:00:07.2]} 44. Kf2 {[%clk 0:00:02]} 44...
Nc4 {[%clk 0:00:07.1]} 45. Be2 {[%clk 0:00:02.1]} 45... Nd6 {[%clk 0:00:07.6]}
46. b3 {[%clk 0:00:02.5]} 46... Kg7 {[%clk 0:00:07.8]} 47. a4 {[%clk 0:00:02.8]}
47... h6 {[%clk 0:00:07.8]} 48. Qf4 {[%clk 0:00:03.2]} 48... Qf6 {[%clk
0:00:07.8]} 49. Qe3 {[%clk 0:00:02.9]} 49... g5 {[%clk 0:00:07.6]} 50. hxg5
{[%clk 0:00:03.8]} 50... hxg5 {[%clk 0:00:07.1]} 51. Bd3 {[%clk 0:00:03.1]}
51... f4 {[%clk 0:00:06.9]} 52. gxf4 {[%clk 0:00:02.5]} 52... gxf4 {[%clk
0:00:06.9]} 53. Qd2 {[%clk 0:00:02.7]} 53... Qh4+ {[%clk 0:00:07.4]} 54. Kf1
{[%clk 0:00:03]} 54... Qh3+ {[%clk 0:00:07.2]} 55. Ke2 {[%clk 0:00:03.5]} 55...
Qg2+ {[%clk 0:00:07]} 56. Ke1 {[%clk 0:00:04]} 56... Qxf3 {[%clk 0:00:06.2]} 57.
Be2 {[%clk 0:00:01.6]} 57... Qe3 {[%clk 0:00:05.8]} 58. Qd1 {[%clk 0:00:01.2]}
58... Ne4 {[%clk 0:00:04.7]} 59. Qd3 {[%clk 0:00:01.1]} 59... Qf2+ {[%clk
0:00:03.8]} 60. Kd1 {[%clk 0:00:01.3]} 60... Qg1+ {[%clk 0:00:03.4]} 61. Kc2
{[%clk 0:00:01.8]} 61... Qf2 {[%clk 0:00:03.4]} 62. Qf3 {[%clk 0:00:02.3]} 62...
Kf6 {[%clk 0:00:01.5]} 63. Qg4 {[%clk 0:00:01.9]} 1-0

[Event "*** Titled Tuesday Blitz"]
[Site "Chess.com"]
[Date "2020.11.10"]
[Round "2"]
[White "nochewycandy"]
[Black "Zkid"]
[Result "0-1"]
[WhiteElo "2525"]
[BlackElo "2760"]
[TimeControl "180+1"]
[EndTime "10:21:32 PST"]
[Termination "Zkid won by resignation"]

1. e4 {[%clk 0:03:00.9]} 1... e6 {[%clk 0:02:58.4]} 2. d4 {[%clk 0:02:53]} 2...
d5 {[%clk 0:02:53.7]} 3. Bd3 {[%clk 0:02:53]} 3... dxe4 {[%clk 0:02:53.3]} 4.
Bxe4 {[%clk 0:02:53.9]} 4... Nf6 {[%clk 0:02:53.6]} 5. Bf3 {[%clk 0:02:53.4]}
5... c5 {[%clk 0:02:54.1]} 6. Ne2 {[%clk 0:02:51.8]} 6... Nc6 {[%clk 0:02:54.3]}
7. Be3 {[%clk 0:02:51]} 7... cxd4 {[%clk 0:02:54.3]} 8. Nxd4 {[%clk 0:02:50.6]}
8... Ne5 {[%clk 0:02:53.8]} 9. Nc3 {[%clk 0:02:49.4]} 9... a6 {[%clk 0:02:52.6]}
10. Qe2 {[%clk 0:02:49.5]} 10... Nxf3+ {[%clk 0:02:52.6]} 11. gxf3 {[%clk
0:02:50.4]} 11... Be7 {[%clk 0:02:37.9]} 12. O-O-O {[%clk 0:02:49.7]} 12... Qa5
{[%clk 0:02:37.9]} 13. Nb3 {[%clk 0:02:40.4]} 13... Qh5 {[%clk 0:02:33.9]} 14.
Rhg1 {[%clk 0:02:35.1]} 14... O-O {[%clk 0:02:26.9]} 15. Rg5 {[%clk 0:02:30.5]}
15... Qh4 {[%clk 0:02:25.4]} 16. Rdg1 {[%clk 0:02:29]} 16... g6 {[%clk
0:02:12.6]} 17. Ne4 {[%clk 0:02:26.3]} 17... Nxe4 {[%clk 0:02:02.3]} 18. R5g4
{[%clk 0:02:26.7]} 18... Qh5 {[%clk 0:01:52.7]} 19. fxe4 {[%clk 0:02:22.3]}
19... e5 {[%clk 0:01:31.5]} 20. Rxg6+ {[%clk 0:02:17.5]} 20... Qxg6 {[%clk
0:01:32]} 21. Rxg6+ {[%clk 0:02:16.8]} 21... hxg6 {[%clk 0:01:30.5]} 22. f4
{[%clk 0:02:03.5]} 22... exf4 {[%clk 0:01:26.3]} 23. Bxf4 {[%clk 0:02:04.4]}
23... Bf6 {[%clk 0:01:24.2]} 24. e5 {[%clk 0:01:59.2]} 24... Re8 {[%clk
0:01:21.6]} 25. Nd4 {[%clk 0:01:45.1]} 25... Bg7 {[%clk 0:01:13.3]} 26. h4
{[%clk 0:01:42.2]} 26... Be6 {[%clk 0:01:10.1]} 27. Qh2 {[%clk 0:01:39.5]} 27...
Rad8 {[%clk 0:01:02.9]} 28. c3 {[%clk 0:01:39.7]} 28... Bg4 {[%clk 0:00:56.6]}
29. Qg3 {[%clk 0:01:37.3]} 29... Bh5 {[%clk 0:00:56.2]} 30. e6 {[%clk 0:01:31]}
30... fxe6 {[%clk 0:00:53.8]} 31. Be5 {[%clk 0:01:30.9]} 31... Bh6+ {[%clk
0:00:51.9]} 32. Kc2 {[%clk 0:01:30.3]} 32... Rd7 {[%clk 0:00:47.3]} 33. Qh3
{[%clk 0:01:20.1]} 33... Rd5 {[%clk 0:00:40.5]} 34. Qg3 {[%clk 0:01:07.1]} 34...
Rd7 {[%clk 0:00:40.1]} 35. Qh3 {[%clk 0:01:06.3]} 35... Rf7 {[%clk 0:00:34.2]}
36. a4 {[%clk 0:00:53.1]} 36... Rf2+ {[%clk 0:00:30.5]} 37. Kb3 {[%clk
0:00:53.5]} 37... Bc1 {[%clk 0:00:26.1]} 38. Nxe6 {[%clk 0:00:34.5]} 38... Rxb2+
{[%clk 0:00:21.6]} 39. Kc4 {[%clk 0:00:30.3]} 39... Rb6 {[%clk 0:00:15.1]} 40.
Bf4 {[%clk 0:00:24.7]} 40... Rbxe6 {[%clk 0:00:14.6]} 41. Bxc1 {[%clk
0:00:24.1]} 41... Rc6+ {[%clk 0:00:12.9]} 42. Kb4 {[%clk 0:00:18.3]} 42... Rec8
{[%clk 0:00:11.7]} 43. Bd2 {[%clk 0:00:16.3]} 43... Bd1 {[%clk 0:00:09.9]} 44.
Qd7 {[%clk 0:00:11]} 44... R8c7 {[%clk 0:00:06.6]} 45. Qd8+ {[%clk 0:00:10.7]}
45... Kf7 {[%clk 0:00:06.9]} 46. Qd5+ {[%clk 0:00:08.3]} 46... Kg7 {[%clk
0:00:05.7]} 47. Bh6+ {[%clk 0:00:08.4]} 47... Kxh6 {[%clk 0:00:05.3]} 48. Qxd1
{[%clk 0:00:09.3]} 48... Rc4+ {[%clk 0:00:05.6]} 49. Kb3 {[%clk 0:00:09.3]}
49... Rxc3+ {[%clk 0:00:05.9]} 50. Kb4 {[%clk 0:00:10]} 50... R3c4+ {[%clk
0:00:05.7]} 51. Ka5 {[%clk 0:00:10.4]} 51... R4c5+ {[%clk 0:00:06]} 52. Kb6
{[%clk 0:00:10.5]} 52... R5c6+ {[%clk 0:00:06.9]} 53. Ka7 {[%clk 0:00:10.8]}
53... b5+ {[%clk 0:00:06.6]} 54. Kb8 {[%clk 0:00:11.5]} 54... bxa4 {[%clk
0:00:07.3]} 55. Qd2+ {[%clk 0:00:11.3]} 55... Kh7 {[%clk 0:00:07.5]} 56. Qd3
{[%clk 0:00:06.8]} 56... Rg7 {[%clk 0:00:07.1]} 57. h5 {[%clk 0:00:06.6]} 57...
Rf6 {[%clk 0:00:06.9]} 58. hxg6+ {[%clk 0:00:06.9]} 58... Rgxg6 {[%clk
0:00:06.4]} 59. Qh3+ {[%clk 0:00:06.1]} 59... Kg7 {[%clk 0:00:06.8]} 60. Qd7+
{[%clk 0:00:02.6]} 60... Rf7 {[%clk 0:00:07.1]} 61. Qd4+ {[%clk 0:00:03.3]}
61... Kg8 {[%clk 0:00:07.5]} 62. Kc8 {[%clk 0:00:02.7]} 62... Re6 {[%clk
0:00:06.9]} 63. Qg4+ {[%clk 0:00:02.9]} 63... Kf8 {[%clk 0:00:06.3]} 64. Qxe6
{[%clk 0:00:03.4]} 64... a5 {[%clk 0:00:06.4]} 65. Qd6+ {[%clk 0:00:03.3]} 65...
Kg8 {[%clk 0:00:06.3]} 66. Qg3+ {[%clk 0:00:03.2]} 66... Rg7 {[%clk 0:00:06.1]}
67. Qd6 {[%clk 0:00:03]} 67... Rf7 {[%clk 0:00:05.7]} 68. Qe6 {[%clk 0:00:03.1]}
68... Kg7 {[%clk 0:00:05.8]} 69. Qe5+ {[%clk 0:00:03.3]} 69... Kg8 {[%clk
0:00:05.2]} 70. Qxa5 {[%clk 0:00:04.2]} 70... Rf8+ {[%clk 0:00:05.3]} 71. Kd7
{[%clk 0:00:04.6]} 71... Rf7+ {[%clk 0:00:05.9]} 72. Ke6 {[%clk 0:00:05.1]}
72... Rg7 {[%clk 0:00:06.1]} 73. Qxa4 {[%clk 0:00:05.2]} 73... Kh7 {[%clk
0:00:06.4]} 74. Qh4+ {[%clk 0:00:05]} 74... Kg6 {[%clk 0:00:07]} 75. Qg4+ {[%clk
0:00:04.7]} 75... Kh6 {[%clk 0:00:06.7]} 76. Qh5+ {[%clk 0:00:05.4]} 76... Kxh5
{[%clk 0:00:06.9]} 0-1

[Event "*** Titled Tuesday Blitz"]
[Site "Chess.com"]
[Date "2020.11.10"]
[Round "2"]
[White "biostatistician"]
[Black "VitaliyBernadskiy"]
[Result "1-0"]
[WhiteElo "2533"]
[BlackElo "2734"]
[TimeControl "180+1"]
[EndTime "10:21:33 PST"]
[Termination "biostatistician won on time"]

1. d4 {[%clk 0:02:57]} 1... Nf6 {[%clk 0:02:58.4]} 2. Nf3 {[%clk 0:02:57.9]}
2... g6 {[%clk 0:02:58.3]} 3. c4 {[%clk 0:02:58.3]} 3... Bg7 {[%clk 0:02:58.3]}
4. Nc3 {[%clk 0:02:59.2]} 4... O-O {[%clk 0:02:58]} 5. e4 {[%clk 0:03:00]} 5...
d6 {[%clk 0:02:56.5]} 6. Be2 {[%clk 0:03:00.9]} 6... Na6 {[%clk 0:02:56.5]} 7.
Bg5 {[%clk 0:02:59.7]} 7... h6 {[%clk 0:02:55]} 8. Bh4 {[%clk 0:02:59.5]} 8...
c6 {[%clk 0:02:41.8]} 9. O-O {[%clk 0:02:59.4]} 9... Nh5 {[%clk 0:02:33.2]} 10.
Ne1 {[%clk 0:02:49.7]} 10... Nf4 {[%clk 0:02:31.7]} 11. Bf3 {[%clk 0:02:49.1]}
11... g5 {[%clk 0:02:31.2]} 12. Bg3 {[%clk 0:02:49.2]} 12... Qb6 {[%clk
0:02:31.3]} 13. Bxf4 {[%clk 0:02:42.5]} 13... gxf4 {[%clk 0:02:32.2]} 14. Ne2
{[%clk 0:02:41.5]} 14... e5 {[%clk 0:02:27.9]} 15. b3 {[%clk 0:02:36.2]} 15...
Nc7 {[%clk 0:02:09.2]} 16. Nd3 {[%clk 0:02:36.1]} 16... Ne6 {[%clk 0:02:06.9]}
17. c5 {[%clk 0:02:32.2]} 17... Qd8 {[%clk 0:02:01.6]} 18. cxd6 {[%clk
0:02:22.6]} 18... exd4 {[%clk 0:02:01.2]} 19. e5 {[%clk 0:02:16.6]} 19... Ng5
{[%clk 0:01:59.1]} 20. Nexf4 {[%clk 0:02:14.3]} 20... f6 {[%clk 0:01:55.4]} 21.
Ng6 {[%clk 0:01:56.4]} 21... fxe5 {[%clk 0:01:55]} 22. Nxf8 {[%clk 0:01:54.1]}
22... Qxf8 {[%clk 0:01:54.4]} 23. Re1 {[%clk 0:01:53.3]} 23... Qxd6 {[%clk
0:01:50.2]} 24. Rc1 {[%clk 0:01:41.9]} 24... Bf5 {[%clk 0:01:48.3]} 25. Nc5
{[%clk 0:01:38.5]} 25... d3 {[%clk 0:01:33]} 26. Nxb7 {[%clk 0:01:27]} 26... Qb4
{[%clk 0:01:32.1]} 27. Rc4 {[%clk 0:00:41.6]} 27... Nxf3+ {[%clk 0:01:31]} 28.
gxf3 {[%clk 0:00:41]} 28... Qxb7 {[%clk 0:01:30.3]} 29. Qd2 {[%clk 0:00:34.3]}
29... Rf8 {[%clk 0:01:28.3]} 30. Rc5 {[%clk 0:00:27]} 30... Bg6 {[%clk
0:01:20.6]} 31. Kh1 {[%clk 0:00:25.9]} 31... Qf7 {[%clk 0:01:18.3]} 32. Re3
{[%clk 0:00:21.9]} 32... e4 {[%clk 0:01:15]} 33. fxe4 {[%clk 0:00:19.7]} 33...
Bd4 {[%clk 0:01:14.2]} 34. Rg3 {[%clk 0:00:18.6]} 34... Bxc5 {[%clk 0:01:07.7]}
35. Qxh6 {[%clk 0:00:14.8]} 35... Qh7 {[%clk 0:01:03.8]} 36. Rxg6+ {[%clk
0:00:14.3]} 36... Kh8 {[%clk 0:01:03.7]} 37. Qg5 {[%clk 0:00:14.6]} 37... Be7
{[%clk 0:00:20.1]} 38. Qe5+ {[%clk 0:00:11.6]} 38... Bf6 {[%clk 0:00:19.8]} 39.
Rxf6 {[%clk 0:00:12.1]} 39... Rxf6 {[%clk 0:00:17.7]} 40. Qxf6+ {[%clk 0:00:13]}
40... Kg8 {[%clk 0:00:17.6]} 41. Qd8+ {[%clk 0:00:13.1]} 41... Kf7 {[%clk
0:00:17.5]} 42. Qxd3 {[%clk 0:00:13.4]} 42... Ke6 {[%clk 0:00:14.6]} 43. Qc4+
{[%clk 0:00:12.3]} 43... Ke5 {[%clk 0:00:14.5]} 44. Qc5+ {[%clk 0:00:12.8]}
44... Kf4 {[%clk 0:00:12.7]} 45. Qxc6 {[%clk 0:00:12.2]} 45... Qg7 {[%clk
0:00:08.3]} 46. Qc1+ {[%clk 0:00:08.1]} 46... Kxe4 {[%clk 0:00:04.8]} 47. Qe3+
{[%clk 0:00:08.5]} 47... Kd5 {[%clk 0:00:04.5]} 48. Qf3+ {[%clk 0:00:06.5]}
48... Ke6 {[%clk 0:00:03.7]} 49. Qe4+ {[%clk 0:00:05.6]} 49... Kd6 {[%clk
0:00:03.6]} 50. Qf4+ {[%clk 0:00:05.4]} 50... Kd5 {[%clk 0:00:03.5]} 51. h4
{[%clk 0:00:05.9]} 51... Qa1+ {[%clk 0:00:03.1]} 52. Kh2 {[%clk 0:00:05.6]}
52... Qxa2 {[%clk 0:00:04]} 53. Qf3+ {[%clk 0:00:05.3]} 53... Ke5 {[%clk
0:00:03.8]} 54. h5 {[%clk 0:00:06.2]} 54... Qd2 {[%clk 0:00:04]} 55. Qe3+ {[%clk
0:00:05.5]} 55... Qxe3 {[%clk 0:00:03.2]} 56. fxe3 {[%clk 0:00:06.4]} 56... Kf5
{[%clk 0:00:04.1]} 57. Kg3 {[%clk 0:00:06.9]} 57... Kg5 {[%clk 0:00:04.5]} 58.
Kf3 {[%clk 0:00:07.2]} 1-0

[Event "*** Titled Tuesday Blitz"]
[Site "Chess.com"]
[Date "2020.11.10"]
[Round "2"]
[White "maxip32"]
[Black "Make_it_shine060"]
[Result "1-0"]
[WhiteElo "2408"]
[BlackElo "2154"]
[TimeControl "180+1"]
[EndTime "10:21:33 PST"]
[Termination "maxip32 won by checkmate"]

1. e4 {[%clk 0:03:00.9]} 1... c5 {[%clk 0:02:59.3]} 2. Nf3 {[%clk 0:02:57.3]}
2... d6 {[%clk 0:02:58.6]} 3. d4 {[%clk 0:02:53.8]} 3... cxd4 {[%clk 0:02:57.9]}
4. Nxd4 {[%clk 0:02:53.9]} 4... Nf6 {[%clk 0:02:57.8]} 5. Nc3 {[%clk 0:02:54.2]}
5... Nc6 {[%clk 0:02:56.4]} 6. Be2 {[%clk 0:02:44.1]} 6... e6 {[%clk 0:02:50.7]}
7. O-O {[%clk 0:02:41.4]} 7... Be7 {[%clk 0:02:49.8]} 8. Be3 {[%clk 0:02:40.9]}
8... O-O {[%clk 0:02:48.1]} 9. f4 {[%clk 0:02:41]} 9... Bd7 {[%clk 0:02:43.6]}
10. Nb3 {[%clk 0:02:36.3]} 10... a6 {[%clk 0:02:40.6]} 11. a4 {[%clk 0:02:35.5]}
11... Rb8 {[%clk 0:02:37]} 12. a5 {[%clk 0:02:34.4]} 12... Nb4 {[%clk
0:02:14.2]} 13. Bf3 {[%clk 0:02:21.1]} 13... Bc6 {[%clk 0:02:03.1]} 14. Nd4
{[%clk 0:01:52.2]} 14... d5 {[%clk 0:01:41.4]} 15. e5 {[%clk 0:01:46.1]} 15...
Nd7 {[%clk 0:01:39.7]} 16. Nce2 {[%clk 0:01:36.2]} 16... Bb5 {[%clk 0:01:11.8]}
17. Nxb5 {[%clk 0:01:29.2]} 17... axb5 {[%clk 0:01:08.8]} 18. Nd4 {[%clk
0:01:29.3]} 18... Nc6 {[%clk 0:01:02]} 19. Nxb5 {[%clk 0:00:20.3]} 19... Nxa5
{[%clk 0:00:56.1]} 20. Bd4 {[%clk 0:00:19.1]} 20... Nc6 {[%clk 0:00:52.6]} 21.
Be3 {[%clk 0:00:14.2]} 21... Ra8 {[%clk 0:00:47.7]} 22. Qd2 {[%clk 0:00:13.7]}
22... Na5 {[%clk 0:00:43.1]} 23. b3 {[%clk 0:00:12.9]} 23... Nc6 {[%clk
0:00:39.7]} 24. Nd4 {[%clk 0:00:10.1]} 24... Bc5 {[%clk 0:00:36]} 25. c3 {[%clk
0:00:08.8]} 25... Qb6 {[%clk 0:00:30.7]} 26. b4 {[%clk 0:00:04.4]} 26... Bxd4
{[%clk 0:00:27.4]} 27. Bxd4 {[%clk 0:00:05.3]} 27... Nxd4 {[%clk 0:00:26.8]} 28.
cxd4 {[%clk 0:00:05.3]} 28... Rac8 {[%clk 0:00:22.5]} 29. Be2 {[%clk 0:00:04.7]}
29... Ra8 {[%clk 0:00:19.9]} 30. Rab1 {[%clk 0:00:04.7]} 30... Ra4 {[%clk
0:00:18.8]} 31. Rfd1 {[%clk 0:00:04.8]} 31... Rfa8 {[%clk 0:00:17.5]} 32. Rb2
{[%clk 0:00:05.2]} 32... Nb8 {[%clk 0:00:15.8]} 33. b5 {[%clk 0:00:04.8]} 33...
Nd7 {[%clk 0:00:15]} 34. g3 {[%clk 0:00:04.3]} 34... Ra3 {[%clk 0:00:14.3]} 35.
Kg2 {[%clk 0:00:04]} 35... Qa5 {[%clk 0:00:14.4]} 36. Qxa5 {[%clk 0:00:03.1]}
36... R8xa5 {[%clk 0:00:14.2]} 37. Rc1 {[%clk 0:00:03.4]} 37... Ra8 {[%clk
0:00:13.5]} 38. Rc7 {[%clk 0:00:03.4]} 38... Nf8 {[%clk 0:00:12.2]} 39. Rxb7
{[%clk 0:00:03.6]} 39... R3a4 {[%clk 0:00:11.6]} 40. Rd2 {[%clk 0:00:03.9]}
40... Ra2 {[%clk 0:00:11.4]} 41. Rxa2 {[%clk 0:00:03.4]} 41... Rxa2 {[%clk
0:00:12.3]} 42. Kf3 {[%clk 0:00:04.1]} 42... Ra3+ {[%clk 0:00:12]} 43. Kf2
{[%clk 0:00:04.6]} 43... Ra4 {[%clk 0:00:10.5]} 44. Ke3 {[%clk 0:00:05]} 44...
Ra3+ {[%clk 0:00:10.7]} 45. Bd3 {[%clk 0:00:05.6]} 45... g6 {[%clk 0:00:09.6]}
46. b6 {[%clk 0:00:05.7]} 46... Rb3 {[%clk 0:00:09.5]} 47. Rb8 {[%clk
0:00:05.3]} 47... Kg7 {[%clk 0:00:09.7]} 48. Kd2 {[%clk 0:00:04.8]} 48... Nd7
{[%clk 0:00:09.3]} 49. Rb7 {[%clk 0:00:02.6]} 49... Nxb6 {[%clk 0:00:09.2]} 50.
Kc2 {[%clk 0:00:02.9]} 50... Rb4 {[%clk 0:00:08]} 51. Kc3 {[%clk 0:00:03]} 51...
Rb1 {[%clk 0:00:06.7]} 52. Bxb1 {[%clk 0:00:02.8]} 52... Na4+ {[%clk 0:00:05.8]}
53. Kb4 {[%clk 0:00:03]} 53... Nb2 {[%clk 0:00:05.2]} 54. Bc2 {[%clk 0:00:03.3]}
54... Nd1 {[%clk 0:00:05.7]} 55. Bxd1 {[%clk 0:00:03.1]} 55... h5 {[%clk
0:00:05.9]} 56. Bb3 {[%clk 0:00:04]} 56... Kh6 {[%clk 0:00:05.1]} 57. Kc5 {[%clk
0:00:04.9]} 57... h4 {[%clk 0:00:04.9]} 58. Bxd5 {[%clk 0:00:05.8]} 58... exd5
{[%clk 0:00:03.8]} 59. Kxd5 {[%clk 0:00:05.9]} 59... hxg3 {[%clk 0:00:04.7]} 60.
hxg3 {[%clk 0:00:06.7]} 60... Kh5 {[%clk 0:00:05.6]} 61. Ke4 {[%clk 0:00:07.1]}
61... Kg4 {[%clk 0:00:06.5]} 62. Rxf7 {[%clk 0:00:07.7]} 62... Kxg3 {[%clk
0:00:06]} 63. Rg7 {[%clk 0:00:08.6]} 63... Kh4 {[%clk 0:00:05.4]} 64. Rxg6
{[%clk 0:00:09.5]} 64... Kh5 {[%clk 0:00:05.7]} 65. Rg1 {[%clk 0:00:10.4]} 65...
Kh6 {[%clk 0:00:05.6]} 66. f5 {[%clk 0:00:11.3]} 66... Kh7 {[%clk 0:00:06.2]}
67. f6 {[%clk 0:00:12.2]} 67... Kh8 {[%clk 0:00:07.1]} 68. f7 {[%clk 0:00:12.9]}
68... Kh7 {[%clk 0:00:08]} 69. Rg2 {[%clk 0:00:13.2]} 69... Kh8 {[%clk
0:00:08.9]} 70. f8=Q+ {[%clk 0:00:13.5]} 70... Kh7 {[%clk 0:00:09.8]} 71. Qg7#
{[%clk 0:00:14.1]} 1-0

[Event "*** Titled Tuesday Blitz"]
[Site "Chess.com"]
[Date "2020.11.10"]
[Round "2"]
[White "PavelShkapenko"]
[Black "indfraeng"]
[Result "1/2-1/2"]
[WhiteElo "2662"]
[BlackElo "2377"]
[TimeControl "180+1"]
[EndTime "10:21:34 PST"]
[Termination "Game drawn by stalemate"]

1. e4 {[%clk 0:03:00.9]} 1... e5 {[%clk 0:02:59.9]} 2. Nf3 {[%clk 0:03:00.4]}
2... Nc6 {[%clk 0:03:00.2]} 3. Bc4 {[%clk 0:03:00.8]} 3... Bc5 {[%clk
0:02:59.7]} 4. c3 {[%clk 0:03:01]} 4... Nf6 {[%clk 0:03:00]} 5. d4 {[%clk
0:03:01.5]} 5... exd4 {[%clk 0:03:00.3]} 6. cxd4 {[%clk 0:03:02.4]} 6... Bb4+
{[%clk 0:03:00.6]} 7. Bd2 {[%clk 0:03:02.8]} 7... Bxd2+ {[%clk 0:02:59.1]} 8.
Nbxd2 {[%clk 0:03:03.7]} 8... d5 {[%clk 0:02:59.6]} 9. exd5 {[%clk 0:03:04.3]}
9... Nxd5 {[%clk 0:03:00.5]} 10. O-O {[%clk 0:03:04.7]} 10... O-O {[%clk
0:02:58.6]} 11. Rc1 {[%clk 0:03:05.2]} 11... Nce7 {[%clk 0:02:58.3]} 12. Re1
{[%clk 0:03:03.5]} 12... c6 {[%clk 0:02:58.2]} 13. h3 {[%clk 0:03:03.1]} 13...
h6 {[%clk 0:02:50.7]} 14. Ne4 {[%clk 0:03:02.8]} 14... Bf5 {[%clk 0:02:48.7]}
15. Ng3 {[%clk 0:03:02.6]} 15... Bh7 {[%clk 0:02:47.6]} 16. Ne5 {[%clk
0:03:02.6]} 16... Ng6 {[%clk 0:02:41.8]} 17. Qf3 {[%clk 0:02:59.5]} 17... Ngf4
{[%clk 0:02:33]} 18. Nh5 {[%clk 0:02:52.4]} 18... Nxh5 {[%clk 0:02:25.4]} 19.
Qxh5 {[%clk 0:02:52.4]} 19... Qd6 {[%clk 0:02:18.2]} 20. Qf3 {[%clk 0:02:11.6]}
20... Rad8 {[%clk 0:02:13.6]} 21. Rcd1 {[%clk 0:02:11.8]} 21... Qf6 {[%clk
0:02:11.4]} 22. Qb3 {[%clk 0:02:08.5]} 22... Nb6 {[%clk 0:02:00.9]} 23. Re3
{[%clk 0:01:53.9]} 23... Nxc4 {[%clk 0:01:54.7]} 24. Qxc4 {[%clk 0:01:54.1]}
24... Bf5 {[%clk 0:01:41.7]} 25. Rf3 {[%clk 0:01:42.5]} 25... Qe6 {[%clk
0:01:16.5]} 26. Qb4 {[%clk 0:01:34.9]} 26... Be4 {[%clk 0:01:05.3]} 27. Re3
{[%clk 0:01:29.9]} 27... Qd5 {[%clk 0:01:04.8]} 28. f3 {[%clk 0:01:17.1]} 28...
c5 {[%clk 0:00:55.5]} 29. fxe4 {[%clk 0:00:43.3]} 29... Qxe5 {[%clk 0:00:53.6]}
30. Qxb7 {[%clk 0:00:43.3]} 30... Rxd4 {[%clk 0:00:50.6]} 31. Rde1 {[%clk
0:00:37.2]} 31... Rb4 {[%clk 0:00:45.4]} 32. Qxa7 {[%clk 0:00:36.2]} 32... Rxb2
{[%clk 0:00:45]} 33. R3e2 {[%clk 0:00:31.9]} 33... Rfb8 {[%clk 0:00:30.2]} 34.
Qa6 {[%clk 0:00:19.4]} 34... Rxe2 {[%clk 0:00:19.5]} 35. Qxe2 {[%clk 0:00:19.4]}
35... Rb2 {[%clk 0:00:20.1]} 36. Qf3 {[%clk 0:00:19.6]} 36... Rxa2 {[%clk
0:00:18.1]} 37. Rf1 {[%clk 0:00:19.9]} 37... Ra7 {[%clk 0:00:16.2]} 38. Qb3
{[%clk 0:00:17.7]} 38... Re7 {[%clk 0:00:14.4]} 39. Qc4 {[%clk 0:00:16.8]} 39...
Qd4+ {[%clk 0:00:12.5]} 40. Qxd4 {[%clk 0:00:16.4]} 40... cxd4 {[%clk
0:00:13.4]} 41. Re1 {[%clk 0:00:16.7]} 41... f5 {[%clk 0:00:13.8]} 42. e5 {[%clk
0:00:16.3]} 42... Kf7 {[%clk 0:00:14.2]} 43. Rd1 {[%clk 0:00:15.5]} 43... Rd7
{[%clk 0:00:14.2]} 44. Re1 {[%clk 0:00:14.5]} 44... Ke6 {[%clk 0:00:14.6]} 45.
Kf2 {[%clk 0:00:15]} 45... Rd5 {[%clk 0:00:15.2]} 46. Kf3 {[%clk 0:00:14.5]}
46... Rxe5 {[%clk 0:00:15.7]} 47. Rb1 {[%clk 0:00:15]} 47... Rd5 {[%clk
0:00:15.3]} 48. Ke2 {[%clk 0:00:12.5]} 48... d3+ {[%clk 0:00:15.2]} 49. Kd2
{[%clk 0:00:13.1]} 49... Ke5 {[%clk 0:00:15]} 50. Rb4 {[%clk 0:00:13.1]} 50...
g5 {[%clk 0:00:14.9]} 51. Rb6 {[%clk 0:00:12.6]} 51... Rd6 {[%clk 0:00:14.5]}
52. Rxd6 {[%clk 0:00:11.6]} 52... Kxd6 {[%clk 0:00:15.4]} 53. Kxd3 {[%clk
0:00:12.1]} 53... Ke5 {[%clk 0:00:15.9]} 54. Ke3 {[%clk 0:00:12.5]} 54... h5
{[%clk 0:00:14.7]} 55. Kf3 {[%clk 0:00:12.5]} 55... h4 {[%clk 0:00:14.4]} 56.
Ke3 {[%clk 0:00:12.4]} 56... g4 {[%clk 0:00:14.3]} 57. hxg4 {[%clk 0:00:12.7]}
57... fxg4 {[%clk 0:00:15.2]} 58. Ke2 {[%clk 0:00:12.5]} 58... Kf4 {[%clk
0:00:15.7]} 59. Kf2 {[%clk 0:00:12.3]} 59... g3+ {[%clk 0:00:13]} 60. Ke2 {[%clk
0:00:12.5]} 60... Kg4 {[%clk 0:00:13]} 61. Kf1 {[%clk 0:00:11.3]} 61... h3
{[%clk 0:00:13]} 62. Kg1 {[%clk 0:00:11.3]} 62... hxg2 {[%clk 0:00:08.9]} 63.
Kxg2 {[%clk 0:00:11.6]} 63... Kf4 {[%clk 0:00:09.8]} 64. Kg1 {[%clk 0:00:11.2]}
64... Kf3 {[%clk 0:00:10.7]} 65. Kf1 {[%clk 0:00:11.1]} 65... g2+ {[%clk
0:00:11.6]} 66. Kg1 {[%clk 0:00:11.1]} 66... Kg3 {[%clk 0:00:12.5]} 1/2-1/2